fUSD/lending_fUSD_20251028
["ID","MTS","AMOUNT","RATE_DAILY","PERIOD"]
[392537280,1761634034949,500.0,0.00037378,50]
[392537281,1761634150174,2526.39702852,0.00031273,120]
[392537283,1761634226750,10000.0,0.00021,3]
[392537292,1761634231968,-170.1521678,0.0002843,4]
[392537293,1761634231978,-266.61663532,0.0002843,4]
[392537294,1761634231990,-150.0,0.0002843,4]
[392537295,1761634232010,-262.17229457,0.0002843,4]
[392537296,1761634232021,-152.0,0.00029764,3]
[392537297,1761634232030,-110.44499852,0.00030152,2]
[392537298,1761634232042,-89.55500148,0.00030152,2]
[392537299,1761634232051,-197.76890231,0.00030172,2]
[392537300,1761634232068,-279.1137834,0.00030172,2]
[392537301,1761634232078,-162.57,0.00030192,2]
[392537302,1761634232088,-313.64,0.00030343,2]
[392537303,1761634232100,-1000.0,0.00030357,2]
[392537304,1761634232111,-400.0,0.00030408,2]
[392537305,1761634232122,-527.0,0.00030408,2]
[392537306,1761634232134,-300.0,0.00030408,2]
[392537307,1761634232145,-500.0,0.00030409,7]
[392537308,1761634232156,-500.0,0.00030409,7]
[392537309,1761634232167,-500.0,0.00030409,7]
[392537310,1761634232178,-436.38383412,0.00030409,7]
[392537351,1761634237928,-63.61616588,0.00030409,7]
[392537352,1761634237937,-624.44,0.00030409,7]
[392537353,1761634237946,-579.04,0.00030409,7]
[392537354,1761634237955,-291.6876658,0.00030409,7]
[392537371,1761634240197,-208.3123342,0.00030409,7]
[392537372,1761634240206,-500.0,0.00030409,7]
[392537373,1761634240216,-500.0,0.00030409,7]
[392537374,1761634240227,-500.0,0.00030409,7]
[392537375,1761634240237,-500.0,0.00030409,7]
[392537376,1761634240247,-500.0,0.00030409,7]
[392537377,1761634240257,-500.0,0.00030409,7]
[392537378,1761634240267,-500.0,0.00030409,7]
[392537379,1761634240277,-500.0,0.00030409,7]
[392537380,1761634240288,-500.0,0.00030409,7]
[392537381,1761634240297,-500.0,0.00030409,7]
[392537382,1761634240306,-500.0,0.00030409,7]
[392537383,1761634240315,-500.0,0.00030409,7]
[392537384,1761634240324,-500.0,0.00030409,7]
[392537386,1761634240335,-500.0,0.00030409,7]
[392537387,1761634240344,-500.0,0.00030409,7]
[392537388,1761634240353,-500.0,0.00030409,7]
[392537389,1761634240362,-500.0,0.00030409,7]
[392537390,1761634240371,-500.0,0.00030409,7]
[392537391,1761634240380,-500.0,0.00030409,7]
[392537392,1761634240389,-500.0,0.00030409,7]
[392537393,1761634240399,-500.0,0.00030409,7]
[392537394,1761634240407,-500.0,0.00030409,7]
[392537395,1761634240417,-500.0,0.00030409,7]
[392537396,1761634240425,-500.0,0.00030409,7]
[392537397,1761634240435,-500.0,0.00030409,7]
[392537398,1761634240443,-500.0,0.00030409,7]
[392537399,1761634240453,-500.0,0.00030409,7]
[392537400,1761634240462,-678.62,0.00030412,3]
[392537401,1761634240471,-168.0,0.00030469,2]
[392537402,1761634240480,-504.40173659,0.00030633,5]
[392537403,1761634240489,-1631.45344769,0.00030648,5]
[392537404,1761634240498,-168.0,0.00030736,7]
[392537405,1761634240507,-151.0,0.00030815,2]
[392537406,1761634240517,-151.0,0.00030815,2]
[392537407,1761634240526,-151.0,0.00030815,2]
[392537408,1761634240535,-151.0,0.00030815,2]
[392537409,1761634240544,-151.0,0.00030815,2]
[392537410,1761634240553,-151.0,0.00030815,2]
[392537411,1761634240563,-151.0,0.00030815,2]
[392537412,1761634240572,-151.0,0.00030815,2]
[392537413,1761634240582,-151.0,0.00030815,2]
[392537414,1761634240592,-151.0,0.00030815,2]
[392537415,1761634240601,-151.0,0.00030815,2]
[392537416,1761634240610,-271.14941134,0.00030815,2]
[392537417,1761634240620,-157.59869534,0.00030832,2]
[392537418,1761634240629,-286.491,0.00030832,27]
[392537419,1761634240638,-35764.97337484,0.00030833,2]
[392537420,1761634240689,-1813.87605045,0.00030833,2]
[392537501,1761634245863,-500.0,0.00030409,7]
[392537502,1761634245873,-500.0,0.00030409,7]
[392537503,1761634245883,-17.82874907,0.00030833,2]
[392537504,1761634245896,-912.13291301,0.00030833,2]
[392537509,1761634325772,151.0,0.00037378,50]
[392537510,1761634326463,151.0,0.00037378,50]
[392537511,1761634335326,200.0,0.00037378,50]
[392537512,1761634335738,207.4,0.00037378,50]
[392537520,1761634452471,1600.0,0.00037378,50]
[392537521,1761634461863,6168.44051746,0.00031506,120]
[392537523,1761634624662,500.0,0.00037378,50]
[392537524,1761634625089,165.20173694,0.00037378,50]
[392537551,1761634768285,177.0,0.00037378,50]
[392537563,1761634987687,856.0,0.00031506,120]
[392537564,1761635006649,804.87523287,0.00037378,120]
[392537565,1761635032299,612.63,0.000315,120]
[392537567,1761635036101,331.81453638,0.00037378,120]
[392537581,1761635431946,-173.64,0.000272,2]
[392537583,1761635431955,-150.0,0.0002843,4]
[392537586,1761635431965,-150.0,0.0002843,4]
[392537588,1761635431975,-150.0,0.0002843,4]
[392537590,1761635431985,-509.0,0.00028734,2]
[392537591,1761635431994,-500.0,0.00028885,2]
[392537593,1761635432003,-500.0,0.00028885,2]
[392537595,1761635432012,-476.21226921,0.00028901,2]
[392537596,1761635432023,-150.0,0.00029084,2]
[392537597,1761635432032,-500.0,0.00029296,2]
[392537598,1761635432041,-500.0,0.00029296,2]
[392537599,1761635432055,-509.0,0.00029322,2]
[392537600,1761635432065,-500.0,0.00029707,2]
[392537601,1761635432074,-500.0,0.00029707,2]
[392537602,1761635432084,-218.22,0.00029889,2]
[392537603,1761635432093,-509.0,0.00029937,2]
[392537604,1761635432103,-400.0,0.00030018,2]
[392537605,1761635432112,-201.0,0.00030019,2]
[392537606,1761635432123,-218.22,0.00030098,2]
[392537607,1761635432132,-432.93379213,0.00030118,2]
[392537608,1761635432155,-67.06620787,0.00030118,2]
[392537609,1761635432165,-474.93622832,0.00030118,2]
[392537610,1761635432176,-25.06377168,0.00030118,2]
[392537611,1761635432186,-650.12,0.00030127,30]
[392537612,1761635432195,-3572.98,0.00030165,2]
[392537613,1761635432204,-509.0,0.00030225,7]
[392537614,1761635432214,-2670.11701161,0.00030254,2]
[392537615,1761635432230,-3386.41298839,0.00030254,2]
[392537616,1761635432239,-200.0,0.00030267,2]
[392537617,1761635432249,-201.0,0.00030279,2]
[392537618,1761635432258,-201.0,0.00030288,7]
[392537619,1761635432267,-218.22,0.00030308,2]
[392537620,1761635432277,-500.0,0.00030409,7]
[392537621,1761635432286,-316.17701161,0.00030409,7]
[392537622,1761635432298,-183.82298839,0.00030409,7]
[392537624,1761635432307,-500.0,0.00030409,7]
[392537626,1761635432317,-500.0,0.00030409,7]
[392537628,1761635432326,-500.0,0.00030409,7]
[392537629,1761635432335,-500.0,0.00030409,7]
[392537630,1761635432344,-500.0,0.00030409,7]
[392537632,1761635432354,-500.0,0.00030409,7]
[392537634,1761635432363,-500.0,0.00030409,7]
[392537636,1761635432373,-500.0,0.00030409,7]
[392537638,1761635432382,-500.0,0.00030409,7]
[392537640,1761635432391,-500.0,0.00030409,7]
[392537642,1761635432400,-500.0,0.00030409,7]
[392537644,1761635432409,-500.0,0.00030409,7]
[392537646,1761635432419,-500.0,0.00030409,7]
[392537648,1761635432428,-500.0,0.00030409,7]
[392537650,1761635432437,-500.0,0.00030409,7]
[392537652,1761635432447,-500.0,0.00030409,7]
[392537654,1761635432456,-218.22,0.00030517,2]
[392537656,1761635432466,-309.74091121,0.00030529,2]
[392537659,1761635432478,-190.25908879,0.00030529,2]
[392537661,1761635432487,-500.0,0.00030529,2]
[392537663,1761635432496,-201.0,0.0003056,2]
[392537666,1761635432505,-3224.94091121,0.0003072,2]
[392538206,1761635437970,-320.88329651,0.00030126,2]
[392538209,1761635437983,-288.92638448,0.00030126,2]
[392538211,1761635437992,-1196.83195107,0.0003072,2]
[392538221,1761635438085,-15719.74289702,0.0003072,2]
[392538223,1761635438095,-12826.4591015,0.0003072,2]
[392538226,1761635438105,-327.48068988,0.00030724,2]
[392538227,1761635438115,-194.27047606,0.00030724,2]
[392538229,1761635438124,-197.10357112,0.00030724,2]
[392538231,1761635438133,-218.22,0.00030726,2]
[392538233,1761635438143,-201.0,0.00030738,2]
[392538236,1761635438153,-567.00128315,0.00030795,2]
[392538238,1761635438162,-229.192,0.00030802,27]
[392538239,1761635438175,-3612.0220639,0.00030833,2]
[392538242,1761635438184,-500.0,0.00030833,2]
[392538243,1761635438193,-150.0,0.00030833,2]
[392538245,1761635438203,-150.0,0.00030833,2]
[392538247,1761635438212,-209.07535329,0.00030833,2]
[392538250,1761635438222,-150.0,0.00030833,2]
[392538251,1761635438231,-150.0,0.00030833,2]
[392538254,1761635438240,-155.0559749,0.00030833,2]
[392538256,1761635438249,-150.0,0.00030833,2]
[392538258,1761635438258,-500.0,0.00030833,2]
[392538260,1761635438268,-281.61097,0.00030833,2]
[392538262,1761635438278,-151.0,0.00030833,31]
[392538264,1761635438287,-151.0,0.00030833,31]
[392538266,1761635438297,-158.893013,0.00030833,31]
[392538267,1761635438306,-151.0,0.00030833,31]
[392538269,1761635438315,-162.809005,0.00030833,31]
[392538271,1761635438325,-151.0,0.00030833,31]
[392538273,1761635438334,-162.809005,0.00030833,31]
[392538275,1761635438344,-151.0,0.00030833,31]
[392538277,1761635438353,-162.809005,0.00030833,31]
[392538280,1761635438364,-162.809005,0.00030833,31]
[392538282,1761635438374,-151.0,0.00030833,31]
[392538284,1761635438383,-151.0,0.00030833,31]
[392538286,1761635438392,-151.0,0.00030833,31]
[392538288,1761635438401,-151.0,0.00030833,31]
[392538290,1761635438410,-151.0,0.00030833,31]
[392538292,1761635438419,-168.0,0.00030851,2]
[392538294,1761635438428,-166.66,0.00030883,2]
[392538295,1761635438437,-500.0,0.00030884,2]
[392538297,1761635438447,-168.0,0.00030915,2]
[392538299,1761635438455,-218.22,0.00030935,2]
[392538302,1761635438465,-500.0,0.0003094,2]
[392538304,1761635438474,-500.0,0.0003094,2]
[392538305,1761635438484,-152.0,0.00030953,4]
[392538307,1761635438493,-165.098978,0.00030953,31]
[392538309,1761635438502,-165.098978,0.00030953,31]
[392538312,1761635438512,-165.098978,0.00030953,31]
[392538314,1761635438524,-151.0,0.00030953,31]
[392538316,1761635438534,-165.098978,0.00030953,31]
[392538318,1761635438543,-164.425114,0.00030953,31]
[392538320,1761635438555,-186.237179,0.00030953,31]
[392538321,1761635438566,-500.0,0.0003097,2]
[392538323,1761635438575,-200.0,0.0003097,2]
[392538325,1761635438584,-150.0,0.0003097,2]
[392538327,1761635438594,-518.0,0.0003097,2]
[392538329,1761635438603,-201.0,0.00030998,2]
[392538331,1761635438612,-153.290073,0.00030998,31]
[392538333,1761635438621,-151.0,0.00030998,31]
[392538336,1761635438631,-151.0,0.00030998,31]
[392538337,1761635438642,-151.0,0.00030998,31]
[392538340,1761635438652,-151.0,0.00030998,31]
[392538342,1761635438662,-369.078572,0.00030998,31]
[392538344,1761635438675,-369.078572,0.00030998,31]
[392538346,1761635438687,-151.0,0.00030998,31]
[392538348,1761635438698,-369.078572,0.00030998,31]
[392538350,1761635438708,-151.0,0.00030998,31]
[392538352,1761635438718,-369.078572,0.00030998,31]
[392538354,1761635438728,-151.0,0.00030998,31]
[392538356,1761635438738,-1316.43392798,0.00031,2]
[392538358,1761635438748,-151.0,0.00031,31]
[392538360,1761635438759,-151.0,0.00031,31]
[392538362,1761635438769,-151.0,0.00031,31]
[392538364,1761635438782,-183.490172,0.00031,31]
[392538366,1761635438792,-154.957081,0.00031,31]
[392538368,1761635438802,-159.948345,0.00031,31]
[392538370,1761635438812,-151.0,0.00031,31]
[392538372,1761635438822,-151.0,0.00031,31]
[392538374,1761635438832,-500.0,0.00031021,2]
[392538376,1761635438842,-150.0,0.0003105,2]
[392538378,1761635438851,-500.0,0.0003105,2]
[392538380,1761635438861,-253.75845026,0.0003105,2]
[392538382,1761635438871,-150.0,0.0003105,2]
[392538384,1761635438882,-500.0,0.0003105,2]
[392538387,1761635438892,-217.32563517,0.00031056,2]
[392538389,1761635438902,-151.0,0.00031076,31]
[392538391,1761635438912,-151.0,0.00031076,31]
[392538393,1761635438921,-151.0,0.00031076,31]
[392538395,1761635438931,-151.0,0.00031076,31]
[392538397,1761635438940,-151.0,0.00031076,31]
[392538399,1761635438950,-151.0,0.00031076,31]
[392538401,1761635438960,-151.0,0.00031076,31]
[392538403,1761635438970,-151.0,0.00031076,31]
[392538405,1761635438979,-151.0,0.00031076,31]
[392538407,1761635438988,-168.527687,0.00031076,31]
[392538409,1761635438997,-151.0,0.00031076,31]
[392538411,1761635439006,-3.11620807,0.00031076,31]
[392538530,1761635440235,-151.0,0.00030833,31]
[392538532,1761635440244,-147.88379193,0.00031076,31]
[392538534,1761635440253,-151.0,0.00031076,31]
[392538536,1761635440262,-151.0,0.00031076,31]
[392538538,1761635440271,-151.0,0.00031076,31]
[392538540,1761635440282,-159.28944,0.00031076,31]
[392538542,1761635440291,-151.0,0.00031076,31]
[392538544,1761635440300,-151.0,0.00031076,31]
[392538546,1761635440309,-151.0,0.00031076,31]
[392538548,1761635440319,-167.050891,0.00031076,31]
[392538550,1761635440327,-151.0,0.00031076,31]
[392538552,1761635440336,-151.0,0.00031076,31]
[392538554,1761635440346,-318.55,0.00031076,14]
[392538556,1761635440355,-29.39266138,0.00031077,2]
[392538558,1761635440366,-270.57637057,0.00031077,2]
[392538560,1761635440375,-500.0,0.00031077,2]
[392538562,1761635440384,-500.0,0.00031077,2]
[392538564,1761635440394,-150.0,0.00031077,2]
[392538566,1761635440403,-500.0,0.00031077,2]
[392538568,1761635440413,-249.5869584,0.00031077,2]
[392538570,1761635440422,-150.0,0.00031077,2]
[392538572,1761635440431,-500.0,0.00031077,2]
[392538574,1761635440440,-500.0,0.00031077,2]
[392538576,1761635440449,-150.0,0.00031077,2]
[392538578,1761635440458,-150.0,0.00031077,2]
[392538580,1761635440467,-151.0,0.00031077,31]
[392538582,1761635440476,-151.0,0.00031077,31]
[392538584,1761635440485,-162.809005,0.00031077,31]
[392538586,1761635440495,-151.0,0.00031077,31]
[392538588,1761635440504,-162.809005,0.00031077,31]
[392538590,1761635440513,-125.97937663,0.00031077,31]
[392538593,1761635440524,-25.02062337,0.00031077,31]
[392538595,1761635440533,-162.809005,0.00031077,31]
[392538597,1761635440542,-162.809005,0.00031077,31]
[392538599,1761635440551,-151.0,0.00031077,31]
[392538601,1761635440560,-151.0,0.00031077,31]
[392538603,1761635440571,-151.0,0.00031077,31]
[392538605,1761635440579,-151.0,0.00031077,31]
[392538607,1761635440589,-151.0,0.00031077,31]
[392538609,1761635440598,-151.0,0.00031077,31]
[392538611,1761635440607,-151.00446989,0.00031107,2]
[392538613,1761635440616,-150.0,0.00031107,2]
[392538615,1761635440625,-218.22,0.00031145,2]
[392538617,1761635440634,-200.0,0.00031155,2]
[392538619,1761635440643,-500.0,0.00031158,2]
[392538621,1761635440653,-150.0,0.00031187,2]
[392538623,1761635440662,-500.0,0.00031187,2]
[392538625,1761635440671,-150.0,0.00031187,2]
[392538627,1761635440680,-500.0,0.00031187,2]
[392538629,1761635440690,-165.098978,0.00031187,31]
[392538631,1761635440699,-165.098978,0.00031187,31]
[392538633,1761635440708,-151.0,0.00031187,31]
[392538635,1761635440718,-165.098978,0.00031187,31]
[392538637,1761635440727,-165.098978,0.00031187,31]
[392538639,1761635440736,-2164.74098474,0.00031197,2]
[392538661,1761635440936,-2704.19177939,0.00031197,2]
[392539043,1761635444639,-151.0,0.00030833,31]
[392539044,1761635444651,-151.0,0.00031077,31]
[392539047,1761635444661,-623.05341902,0.00031197,2]
[392539049,1761635444672,-1110.28711185,0.00031197,2]
[392539051,1761635444683,-585.88404186,0.00031197,2]
[392539053,1761635444695,-1441.06478211,0.00031197,2]
[392539055,1761635444706,-1539.7086429,0.00031197,2]
[392539074,1761635444877,-256.62775767,0.00031197,2]
[392539080,1761635444925,-767.335403,0.00031197,2]
[392539208,1761635446070,-332.47150686,0.00030409,7]
[392539210,1761635446082,-167.52849314,0.00030409,7]
[392539212,1761635446092,-276.74870706,0.00031197,2]
[392539214,1761635446103,-919.41066,0.00031197,2]
[392539217,1761635446115,-292.16579688,0.00031197,2]
[392539219,1761635446127,-1884.99739185,0.00031197,2]
[392539221,1761635446137,-129.67488411,0.00031197,2]
[392539228,1761635446229,-539.97010201,0.00031197,2]
[392539229,1761635446239,-43.84338435,0.00031197,31]
[392542264,1761635478180,260.18,0.00013699,2]
[392543749,1761635522708,1609.5122062,0.00031506,120]
[392543836,1761636316004,500.0,0.00037379,50]
[392543852,1761636339444,900.0,0.00037379,50]
[392543854,1761636373766,442.37,0.000315,120]
[392543856,1761636454372,303.09749984,0.00031506,120]
[392543864,1761636544188,1600.0,0.00027523,120]
[392543865,1761636544543,1600.0,0.00030964,120]
[392543890,1761636632474,-250.0,0.00017,2]
[392543891,1761636632483,-4065.22395055,0.000175,2]
[392543892,1761636632496,-300.0,0.00019,2]
[392543893,1761636632506,-260.18,0.00020187,2]
[392543894,1761636632516,-216.9840124,0.00023024,2]
[392543895,1761636632525,-216.9840124,0.00023451,2]
[392543896,1761636632535,-216.9840124,0.0002363,2]
[392543897,1761636632544,-216.9840124,0.00024006,2]
[392543898,1761636632553,-216.9840124,0.00024361,2]
[392543899,1761636632563,-216.9840124,0.0002465,2]
[392543900,1761636632572,-216.9840124,0.00024795,2]
[392543901,1761636632585,-306.20107872,0.00025,7]
[392543902,1761636632594,-216.9840124,0.0002503,2]
[392543903,1761636632605,-216.9840124,0.00025446,2]
[392543904,1761636632614,-216.9840124,0.00025603,2]
[392543905,1761636632625,-216.9840124,0.00025998,2]
[392543906,1761636632634,-381.72424641,0.00026,2]
[392543907,1761636632645,-216.9840124,0.00026279,2]
[392543908,1761636632655,-216.9840124,0.00026421,2]
[392543909,1761636632664,-260.18,0.00026676,2]
[392543910,1761636632673,-166.66,0.00026712,30]
[392543911,1761636632683,-375.979577,0.00026831,2]
[392543912,1761636632696,-216.9840124,0.00026833,2]
[392543913,1761636632705,-216.9840124,0.00027116,2]
[392543914,1761636632715,-216.9840124,0.00027165,2]
[392543915,1761636632724,-216.9840124,0.00027422,2]
[392543916,1761636632733,-163.15,0.0002784,2]
[392543917,1761636632743,-216.9840124,0.00027899,2]
[392543918,1761636632752,-400.0,0.00028,2]
[392543919,1761636632762,-216.9840124,0.00028002,2]
[392543920,1761636632771,-141.11901551,0.00028118,30]
[392543921,1761636632784,-25.54098449,0.00028118,30]
[392543922,1761636632793,-216.9840124,0.00028361,2]
[392543924,1761636632803,-150.0,0.0002843,4]
[392543926,1761636632812,-150.0,0.0002843,4]
[392543928,1761636632822,-150.0,0.0002843,4]
[392543930,1761636632832,-150.0,0.0002843,4]
[392543932,1761636632841,-150.0,0.0002843,4]
[392543933,1761636632850,-216.9840124,0.00028647,2]
[392543934,1761636632859,-500.0,0.00028885,2]
[392543935,1761636632867,-500.0,0.00028885,2]
[392543936,1761636632876,-216.9840124,0.00028981,2]
[392543937,1761636632886,-216.9840124,0.0002907,2]
[392543938,1761636632898,-500.0,0.00029296,2]
[392543939,1761636632907,-500.0,0.00029296,2]
[392543940,1761636632916,-216.9840124,0.00029357,2]
[392543941,1761636632925,-166.66,0.00029524,30]
[392543942,1761636632934,-216.9840124,0.00029648,2]
[392543943,1761636632943,-500.0,0.00029707,2]
[392543944,1761636632952,-500.0,0.00029707,2]
[392543945,1761636632961,-9481.01,0.00029815,2]
[392543946,1761636632970,-9999.99,0.00029815,2]
[392543947,1761636632979,-3727.34,0.00029815,2]
[392543948,1761636632988,-185.34,0.00029815,2]
[392543949,1761636632997,-1582.79,0.00029815,2]
[392543950,1761636633006,-9999.99,0.00029815,2]
[392543951,1761636633015,-150.99,0.00029815,2]
[392543952,1761636633023,-96249.07,0.00029815,2]
[392543953,1761636633032,-9999.99,0.00029815,2]
[392543954,1761636633042,-2559.62,0.00029815,2]
[392543955,1761636633051,-999.99,0.00029815,2]
[392543956,1761636633060,-151.0,0.00029815,31]
[392543957,1761636633068,-151.0,0.00029815,31]
[392543958,1761636633078,-151.0,0.00029815,31]
[392543959,1761636633087,-151.0,0.00029815,31]
[392543960,1761636633098,-151.0,0.00029815,31]
[392543961,1761636633107,-151.0,0.00029815,31]
[392543962,1761636633117,-151.0,0.00029815,31]
[392543963,1761636633126,-151.0,0.00029815,31]
[392543964,1761636633135,-151.0,0.00029815,31]
[392543965,1761636633145,-151.0,0.00029815,31]
[392543966,1761636633154,-151.0,0.00029815,31]
[392543967,1761636633164,-151.0,0.00029815,31]
[392543968,1761636633174,-151.0,0.00029815,31]
[392543969,1761636633183,-164.425114,0.00029815,31]
[392543970,1761636633193,-163.15,0.00029928,2]
[392543971,1761636633202,-1000.0,0.0002995,2]
[392543972,1761636633211,-500.0,0.0003,2]
[392543973,1761636633222,-216.9840124,0.00030089,2]
[392543974,1761636633231,-500.0,0.00030118,2]
[392543975,1761636633240,-500.0,0.00030118,2]
[392543976,1761636633250,-500.0,0.00030137,15]
[392543977,1761636633260,-221.83,0.00030187,2]
[392543978,1761636633270,-156.19009,0.00030187,31]
[392543979,1761636633280,-151.0,0.00030187,31]
[392543980,1761636633291,-151.0,0.00030187,31]
[392543981,1761636633301,-151.0,0.00030187,31]
[392543982,1761636633311,-151.0,0.00030187,31]
[392543983,1761636633320,-151.0,0.00030187,31]
[392543984,1761636633329,-151.0,0.00030187,31]
[392543985,1761636633339,-151.0,0.00030187,31]
[392543986,1761636633348,-220.325394,0.00030187,31]
[392543987,1761636633357,-188.94408,0.00030187,31]
[392543988,1761636633367,-151.0,0.00030187,31]
[392543989,1761636633376,-151.0,0.00030187,31]
[392543990,1761636633385,-150.0,0.00030188,2]
[392543991,1761636633395,-250.0,0.00030215,2]
[392543992,1761636633405,-261.36,0.00030215,2]
[392543993,1761636633414,-150.0,0.00030341,2]
[392543994,1761636633423,-151.0,0.00030388,2]
[392543995,1761636633433,-151.0,0.00030388,2]
[392543996,1761636633442,-151.0,0.00030388,2]
[392543997,1761636633451,-224.80217819,0.00030388,2]
[392543998,1761636633460,-216.9840124,0.00030398,2]
[392543999,1761636633471,-2000.0,0.00030406,2]
[392544000,1761636633487,-500.0,0.00030409,7]
[392544001,1761636633500,-500.0,0.00030409,7]
[392544002,1761636633510,-500.0,0.00030409,7]
[392544003,1761636633519,-648.24,0.00030409,7]
[392544004,1761636633530,-500.0,0.00030411,15]
[392544005,1761636633540,-2393.2343657,0.00030521,2]
[392544006,1761636633549,-500.0,0.00030529,2]
[392544007,1761636633559,-500.0,0.00030529,2]
[392544008,1761636633569,-216.9840124,0.0003054,2]
[392544009,1761636633583,-194.27047606,0.00030619,2]
[392544010,1761636633592,-327.48068988,0.00030619,2]
[392544011,1761636633602,-197.10357112,0.00030619,2]
[392544012,1761636633612,-151.0,0.00030621,31]
[392544013,1761636633623,-151.0,0.00030621,31]
[392544014,1761636633632,-153.290073,0.00030621,31]
[392544015,1761636633642,-151.0,0.00030621,31]
[392544016,1761636633653,-151.0,0.00030621,31]
[392544017,1761636633665,-151.0,0.00030621,31]
[392544018,1761636633674,-151.0,0.00030621,31]
[392544019,1761636633684,-151.0,0.00030621,31]
[392544020,1761636633694,-151.0,0.00030621,31]
[392544021,1761636633704,-151.0,0.00030621,31]
[392544022,1761636633713,-252.001449,0.00030621,31]
[392544023,1761636633724,-151.0,0.00030621,31]
[392544024,1761636633734,-270.608159,0.00030621,31]
[392544025,1761636633746,-151.0,0.00030621,31]
[392544026,1761636633756,-151.0,0.00030621,31]
[392544027,1761636633767,-151.0,0.00030621,31]
[392544028,1761636633777,-151.0,0.00030621,31]
[392544029,1761636633789,-168.527687,0.00030621,31]
[392544030,1761636633798,-151.0,0.00030621,31]
[392544031,1761636633808,-151.0,0.00030621,31]
[392544032,1761636633818,-299.02,0.00030621,14]
[392544033,1761636633830,-183.490172,0.00030621,31]
[392544034,1761636633840,-158.893013,0.00030621,31]
[392544035,1761636633850,-159.948345,0.00030621,31]
[392544036,1761636633860,-151.0,0.00030621,31]
[392544037,1761636633873,-151.0,0.00030621,31]
[392544038,1761636633885,-151.0,0.00030621,31]
[392544039,1761636633895,-151.0,0.00030621,31]
[392544040,1761636633906,-151.0,0.00030621,31]
[392544041,1761636633916,-151.0,0.00030621,31]
[392544042,1761636633925,-151.0,0.00030621,31]
[392544043,1761636633936,-151.0,0.00030621,31]
[392544044,1761636633946,-151.0,0.00030621,31]
[392544045,1761636633956,-151.0,0.00030621,31]
[392544046,1761636633966,-151.0,0.00030621,31]
[392544047,1761636633976,-151.0,0.00030621,31]
[392544048,1761636633986,-369.078572,0.00030621,31]
[392544049,1761636633995,-369.078572,0.00030621,31]
[392544050,1761636634005,-369.078572,0.00030621,31]
[392544051,1761636634015,-153.486303,0.00030621,31]
[392544052,1761636634024,-369.078572,0.00030621,31]
[392544053,1761636634034,-369.078572,0.00030621,31]
[392544054,1761636634044,-151.0,0.00030621,31]
[392544055,1761636634053,-369.078572,0.00030621,31]
[392544056,1761636634063,-151.0,0.00030621,31]
[392544057,1761636634073,-369.078572,0.00030621,31]
[392544058,1761636634083,-151.0,0.00030621,31]
[392544059,1761636634092,-369.078572,0.00030621,31]
[392544060,1761636634102,-151.0,0.00030621,31]
[392544061,1761636634111,-151.0,0.00030621,31]
[392544062,1761636634121,-154.073704,0.00030621,31]
[392544063,1761636634131,-152.733342,0.00030621,31]
[392544064,1761636634140,-187.938889,0.00030621,31]
[392544065,1761636634151,-151.0,0.00030621,31]